Workbook

Sheet Economies of scale tool
B3: Economies of scale tool
B5: The marginal benefit of increasing scale in the business | G5: Pasture fertiliser & cost on expansion
C6: Existing | D6: Expansion | E6: % change | G6: Stocking rate on expansion area (DSE) | H6: 2000
B7: Area (ha) | C7: 1600 | D7: 200 | E7: =D7/C7 -> 0.125 | G7: Stocking rate on expansion area (DSE/ha) | H7: =H6/D7 -> 10
G8: Fertiliser rate (kg P/ marginal DSE) | H8: 0.8
B9: Administration | C9: 12000 | D9: =C26 -> 1000 | E9: =D9/C9 -> 0.08333333333 | G9: Fertiliser cost ($/t) | H9: 470
B10: Depreciation | C10: 12000 | D10: =L43+(C10*C34) -> 600 | E10: =D10/C10 -> 0.05 | G10: % Phosphorus in fertiliser | H10: 0.088
B11: Electricity and gas | C11: 5500 | D11: =C27 -> 0 | E11: =D11/C11 -> 0 | G11: Application cost ($/t) | H11: 50
B12: Fertiliser - pasture | C12: 90000 | D12: =H12 -> 9454.545455 | E12: =D12/C12 -> 0.1050505051 | G12: Fertiliser cost spread | H12: =H13*H9+(H11*(H13)) -> 9454.545455
B13: Fuel & lubricants - overhead | C13: 7500 | D13: =H24+(C13*C34) -> 5991 | E13: =D13/C13 -> 0.7988 | G13: Fertiliser required (tonnes) | H13: =H6*H8/H10/1000 -> 18.18181818
B14: Insurance | C14: 16000 | D14: =C28 -> 1000 | E14: 0.0625
B15: Lime/gypsum | C15: 40000 | D15: =C29 -> 4000 | E15: 0.1 | G15: Travel costs due to expansion area
B16: Materials | C16: 1000 | D16: =C30 -> 1000 | E16: 1 | G16: Distance to expansion area (km) | H16: 30
B17: Motor vehicles | C17: 5000 | D17: =L42 -> 0 | E17: =D17/C17 -> 0 | G17: Fuel cost ($/L) | H17: 2
B18: Rates and rents | C18: 12000 | D18: 2400 | E18: =D18/C18 -> 0.2 | G18: Fuel efficiency (L/100km) | H18: 15
B19: R&M general | C19: 45000 | D19: =C32 -> 6000 | E19: =D19/C19 -> 0.1333333333 | G19: Average speed (km/hr) | H19: 80
B20: Wages | C20: 165000 | D20: =IF(C35="Yes",H32,0) -> 0 | E20: =D20/C20 -> 0 | G20: Trips/week | H20: 6
B21: Total overhead expenses | C21: =SUM(C9:C20) -> 411000 | D21: =SUM(D9:D20) -> 31445.54545 | E21: =D21/C21 -> 0.07650984296 | G21: Distance (km/yr) | H21: =H16*2*H20*52 -> 18720
B22: Total overhead expenses ($/ha) | C22: =C21/C7 -> 256.875 | D22: =D21/D7 -> 157.2277273 | G22: Days travelling | H22: =H21/H19/8 -> 29.25
B23: Marginal benefit of scale ($/ha) | D23: =C22-D22 -> 99.64727273 | E23: =D23/C22 -> 0.3879212564 | G23: Percent of FTE travelling | H23: =SUM(H22)/240 -> 0.121875
G24: Fuel cost | H24: =H21/100*H18*H17 -> 5616
B25: Expected additional costs associated with expansion area
B26: Administration | C26: 1000 | G26: Additional labour costs on expansion area
B27: Electricity & gas | C27: 0 | G27: Labour unit | H27: Input/output
B28: Insurance | C28: 1000 | G28: Days of work/year | H28: 75
B29: Lime & gypsum | C29: 4000 | G29: Hourly rate (excluding on costs) | H29: 35
B30: Materials | C30: 1000 | G30: Annual cost | H30: =H29*240*8 -> 67200
B31: Rates & rents | C31: 12000 | G31: On costs (% hourly rate) | H31: 0.21
B32: Repairs & maintenance | C32: 6000 | G32: Gross cost (incl on costs) | H32: =H29*H28*8*(1+H31) -> 25410
B34: How much more work will existing plant do? | C34: 0.05 | G34: Additional depreciation cost associated with additional plant and equipment required for expansion area
B35: Will you need to pay for additional labour to conduct the work? | C35: No | G35: Additional vehicles & plant | H35: Toyota Hilux | I35: Plant 2 | J35: Plant 3 | K35: Plant 4 | L35: Total
G36: Purchase value | L36: =SUM(H36:K36) -> 0
G37: Years owned
B38: =IF(D23<0,"You achieve diseconomies of scale with this expansion","You achieve economies of scale with this expansion") -> You achieve economies of scale with this expansion | G38: Sale value | L38: =SUM(H38:K38) -> 0
G39: Repairs ($/year) | L39: 0
B40: ="For every additional hectare in this expansion your operating profit will "&IF(D23<0,"decrease by","increase by") &TEXT(ABS(D23)," $0")&"/ha." -> For every additional hectare in this expansion your operating profit will increase by $100/ha. | G40: Registration costs ($/year) | L40: 0
G41: Insurance costs ($/year) | L41: =SUM(H41:K41) -> 0
G42: Motor vehicle costs ($/year) | H42: =SUM(H39:H41) -> 0 | I42: =SUM(I39:I41) -> 0 | J42: 0 | K42: 0 | L42: =SUM(H42:K42) -> 0
G43: Depreciation ($/year) | H43: =IF(OR(H36=0,H36=""),"",SLN(H36,H38,H37)) ->  | I43: =IF(OR(I36=0,I36=""),"",SLN(I36,I38,I37)) ->  | J43: =IF(OR(J36=0,J36=""),"",SLN(J36,J38,J37)) ->  | K43: =IF(OR(K36=0,K36=""),"",SLN(K36,K38,K37)) ->  | L43: =SUM(H43:K43) -> 0
B47: Purpose of the Economies of scale from expansion tool: This tool calculates the value of the economies of scale or diseconomies of scale generated when expanding the business. When expanding or intensifying economies of scale can generate high value to a business manager by increasing the operating profit on every additional hectare of land. The extent of the economies of scale differ by business circumstance this tool calculates the extent of the value and allows the user to sensitise inputs to establish what factors make a difference to the outputs.
B51: Disclaimer: This decision support tool is produced by Agrista. The contents do not constitute management or business advice and should not be relied on as such. Before taking any action in relation to a matter described in this decision support tool, you should seek independent advice from a qualified professional. Agrista accepts no responsibility for any loss or damage resulting from reliance on the contents of this tool.
B93: Additional depreciation cost associated with additional plant and equipment required
B94: Additional vehicles & plant | C94: Purchase value | D94: Years owned | E94: Sale value
B95: Toyota Hilux | C95: 30000 | D95: 5 | E95: 5000 | F95: Repairs ($/yr) | G95: Depreciation ($/yr)
B96: Item 2 | F96: 1000 | G96: =IF(OR(C95=0,C95=""),"",SLN(C95,E95,D95)) -> 5000
B97: Item 3
B98: Item 4
B99: Item 5
B100: Item 6
B101: Item 7
B102: Item 8
B103: Item 9
B104: Item 10
B105: Total
G106: =SUM(G96:G105) -> 5000

Sheet Stamp duty (hidden)
A1: NSW
A2: 0 | B2: 0.0125 | C2: 0 | G2: NSW
A3: 14000 | B3: 0.015 | C3: 175 | G3: Dutiable Value | H3: Duty Payable
A4: 30000 | B4: 0.0175 | C4: 415 | G4: $0 - $14,000 | H4: 1.25% of dutiable value
A5: 80000 | B5: 0.035 | C5: 1290 | G5: $14,001 - $30,000 | H5: $175 + 1.5% of dutiable value over $14,000
A6: 300000 | B6: 0.045 | C6: 8990 | G6: $30,001 - $80,000 | H6: $415 + 1.75% of dutiable value over $30,000
A7: 1000000 | B7: 0.055 | C7: 40490 | G7: $80,001 - $300,000 | H7: $1,290 + 3.5% of dutiable value over $80,000
A8: 3000000 | B8: 0.07 | C8: 150490 | G8: $300,001 - $1 million | H8: $8,990 + 4.5% of dutiable value over $300,000
G9: $1 million - $3 million | H9: $40,490 + 5.5% of dutiable value over $1 million
G10: Over $3 million | H10: $150,490 + 7% of dutiable value over $3 million
D11: Land purchase price | E11: 1000000
D12: Stamp duty rate | E12: =VLOOKUP($E$11,rT,3)+($E$11-VLOOKUP($E$11,rT,1))*VLOOKUP($E$11,rT,2) -> 40490 | G12: Victoria Stamp Duty Rates
G13: The follow values are for a Principal place of Residence (PPR). Other values are applicable for non-PPR purchases.
G14: Dutiable Value | H14: Duty Payable
G15: $0 - $25,000 | H15: 1.4% of dutiable value (PPR concession not available)
G16: $25,001 - $130,000 | H16: $350 + 2.4% of dutiable value over $25,000 (PPR concession not available)
G17: $130,001 - $440,000 | H17: $2,870 + 5% of dutiable value over $130,000
G18: $440,001 - $550,000 | H18: $18,370 + 6% of dutiable value over $440,000
G19: $550,001 - $960,000 | H19: $2,870 + 6% of dutiable value over $130,000 (PPR concession not available)
G20: Over $960,000 | H20: 5.5% of dutiable value (PPR concession not available)
G22: Queensland Stamp Duty Rates
G24: Dutiable Value | H24: Duty Payable
G25: $0 - $5,000 | H25: No stamp duty payable
G26: $5,001 - $105,000 | H26: 1.5% of dutiable value over $5000
G27: $105,001 - $480,000 | H27: $1,500 + 3.5% of dutiable value over $105,000
G28: $480,001 - $980,000 | H28: $14,625 + 4.5% of dutiable value over $480,000
G29: Over $980,000 | H29: $37,125 + 5.25% of dutiable value over $980,000
G31: South Australia Stamp Duty Rates
G33: Dutiable Value | H33: Duty Payable
G34: $0 - $12,000 | H34: 1% of dutiable value
G35: $12,001 - $30,000 | H35: $120 + 2% of dutiable value over $12,000
G36: $30,001 - $50,000 | H36: $480 + 3% of dutiable value over $30,000
G37: $50,001 - $100,000 | H37: $1080 + 3.5% of dutiable value over $50,000
G38: $100,001 - $200,000 | H38: $2830 + 4% of dutiable value over $100,000
G39: $200,001 - $250,000 | H39: $6830 + 4.25% of dutiable value over $200,000
G40: $250,001 - $300,000 | H40: $8955 + 4.75% of dutiable value over $250,000
G41: $300,001 - $500,000 | H41: $11,330 + 5% of dutiable value over $300,000
G42: Over $500,000 | H42: $21,330 + 5.5% of dutiable value over $500,000
G44: Western Australia Stamp Duty Rates
G46: Dutiable Value | H46: Duty Payable
G47: $0 - $120,000 | H47: 1.9% of dutiable value
G48: $120,001 - $150,000 | H48: $2280 + 2.85% of dutiable value over $120,000
G49: $150,001 - $360,000 | H49: $3135 + 3.8% of dutiable value over $150,000
G50: $360,001 - $725,000 | H50: $11,115 + 4.75% of dutiable value over $360,000
G51: Over $725,000 | H51: $28,435 + 5.15% of dutiable value over $725,000
G53: Tasmania Stamp Duty Rates
G55: Dutiable Value | H55: Duty Payable
G56: $0 - $1,300 | H56: 20
G57: $1,301 - $10,000 | H57: 1.5% of dutiable value
G58: $10,001 - $30,000 | H58: $150 + 2% of dutiable value over $10,000
G59: $30,001 - $75,000 | H59: $550 + 2.5% of dutiable value over $30,000
G60: $75,001 - $150,000 | H60: $1675 + 3% of dutiable value over $75,000
G61: $150,001 - $225,000 | H61: $3925 + 3.5% of dutiable value over $150,000
G62: Over $225,000 | H62: $6,550 + 4% of dutiable value over $225,000
G64: Australian Capital Territory Stamp Duty Rates
G66: Dutiable Value | H66: Duty Payable
G67: $0 - $100,000 | H67: 2% of dutiable value or $20, whichever is greater
G68: $100,001 - $200,000 | H68: $2000 + 3.5% of dutiable value over $100,000
G69: $200,001 - $300,000 | H69: $5500 + 4% of dutiable value over $200,000
G70: $300,001 - $500,000 | H70: $9500 + 5.5% of dutiable value over $300,000
G71: $500,001 - $1,000,000 | H71: $20,500 + 5.75% of dutiable value over $500,000
G72: Over $1 million | H72: $49,250 + 6.75% of dutiable value over $1 million
G74: Northern Territory Stamp Duty Rates
G75: For property values up to $525,000 the following formula is used:
G76: Duty payable = (0.06571441 x V2) + 15V where V = (dutiable value) / 1000.
G77: Dutiable Value | H77: Duty Payable
G78: $0 - $525,000 | H78: See above formula
G79: $525,001 - $3,000,000 | H79: 4.95% of dutiable value
G80: Over $3 million | H80: 5.45% of dutiable value

Sheet Livestock capital (hidden)
C3: Ewes | D3: Lambs | E3: Rams | H3: PTIC cows | I3: Yearling | J3: Bulls | M3: Ewes | N3: Lambs | O3: Rams
B4: DSE/hd | C4: 1.5 | D4: 1.9 | E4: 1.25 | G4: DSE/hd | H4: 14 | I4: 9 | J4: 14 | L4: DSE/hd | M4: 1.5 | N4: 1 | O4: 1.25
B5: % yr | C5: 1 | D5: 0.25 | E5: 1 | G5: % yr | H5: 1 | I5: 0.5 | J5: 1 | L5: % yr | M5: 1 | N5: 1 | O5: 1
B6: Price ($/hd) | C6: 130 | E6: 1000 | G6: Price ($/hd) | H6: 1800 | I6: =250*3.3 -> 825 | J6: 5000 | L6: Price ($/hd) | M6: 120 | O6: 1000
B7: Weaning/joining % | D7: 1.1 | E7: 0.01 | G7: Weaning/joining % | I7: 1 | J7: 0.02 | L7: Weaning/joining % | N7: 0.8 | O7: 0.01
B8: Number head | C8: 1 | D8: =C8*D7 -> 1.1 | E8: =C8*E7 -> 0.01 | G8: Number head | H8: 1 | I8: =H8*I7 -> 1 | J8: =H8*J7 -> 0.02 | L8: Number head | M8: 1 | N8: =M8*N7 -> 0.8 | O8: =M8*O7 -> 0.01
B9: AA DSE | C9: =C8*C5*C4 -> 1.5 | D9: =D8*D5*D4 -> 0.5225 | E9: =E8*E5*E4 -> 0.0125 | G9: AA DSE | H9: =H8*H5*H4 -> 14 | I9: =I8*I5*I4 -> 4.5 | J9: =J8*J5*J4 -> 0.28 | L9: AA DSE | M9: =M8*M5*M4 -> 1.5 | N9: =N8*N5*N4 -> 0.8 | O9: =O8*O5*O4 -> 0.0125
B10: Total DSE | C10: =SUMPRODUCT(C4:E4,C8:E8,C5:E5) -> 2.035 | G10: Total DSE | H10: =SUMPRODUCT(H4:J4,H8:J8,H5:J5) -> 18.78 | L10: Total DSE | M10: =SUMPRODUCT(M4:O4,M8:O8,M5:O5) -> 2.3125
B11: Capital cost | C11: =SUMPRODUCT(C8:E8,C6:E6) -> 140 | G11: Capital cost | H11: =SUMPRODUCT(H8:J8,H6:J6) -> 2725 | L11: Capital cost | M11: =SUMPRODUCT(M8:O8,M6:O6) -> 130
B12: Capital cost ($/DSE) | C12: =C11/SUM(C9:E9) -> 68.7960688 | G12: Capital cost ($/DSE) | H12: =H11/SUM(H9:J9) -> 145.1011715 | L12: Capital cost ($/DSE) | M12: =M11/SUM(M9:O9) -> 56.21621622

Sheet Land purchase tool (hidden)
A2: Expansion tool (fixed area) - can I afford to expand? | M2: Asking price ($/ac) | N2: 1000 | Y2: Tom | Z2: LU 1
A3: Area owned (hectares) | B3: 1000 | D3: 200 | F3: =SUM(B3,D3) -> 1200 | M3: Purchase price | N3: =N39*N2 -> 2220000 | U3: Area (ha) | V3: =O39 -> 898.4216916 | X3: Distance (km) | Y3: 30 | Z3: 60
A4: Additional area (mgd or leased) | B4: 0 | F4: 0 | H4: Tax rate | I4: 0.3 | M4: Land price ($/ha) | N4: =N3/O39 -> 2471 | U4: Potential SR DSE | V4: =N5 -> 7762.03966 | X4: Trips/wk | Y4: 2 | Z4: 4
A5: Total area managed | B5: =SUM(B3:B4) -> 1000 | D5: =SUM(D3:D4) -> 200 | F5: =SUM(B5,D5) -> 1200 | H5: Years | I5: 10 | M5: Farm stocking rate ($/ha) | N5: =R39 -> 7762.03966 | U5: Potential SR DSE/ha | V5: =V4/V3 -> 8.63963964 | X5: Distance (km/yr) | Y5: =Y3*2*Y4*52 -> 6240 | Z5: =Z3*2*Z4*52 -> 24960
A6: Bank interest rate | B6: 0.06 | D6: 0.065 | H6: IRR | I6: =IRR(C63:C103) -> 0.1172031872 | M6: Land price ($/DSE) | N6: =N3/N5 -> 286.0072993 | U6: Fertiliser application cost | V6: =V8/1000*V12 -> 28225.59876 | X6: Av speed (km/hr) | Y6: 80 | Z6: 80
A7: Whole farm income | B7: =SUM(B8:B10) -> 920057.64 | C7: 0 | D7: =B13*D3*(1+C7) -> 184011.528 | F7: =SUM(B7,D7) -> 1104069.168 | H7: NPV | I7: =C63+NPV(10%,C64:C93) -> 53900.62974 | N7: =N5/O23 -> 8.63963964 | U7: Total kg P | V7: =V8*V15 -> 6209.631728 | X7: Days travelling | Y7: =Y5/Y6/8 -> 9.75 | Z7: =Z5/Z6/8 -> 39
A8: Enterprise expenses | B8: 293501 | C8: 0 | D8: =B14*D3*(1+C8) -> 58700.2 | F8: =SUM(B8,D8) -> 352201.2 | N8: Ewes | O8: Lambs | P8: Rams | U8: Total kg SSP | V8: =S39 -> 70563.99691 | X8: Percent of FTE travelling | Y8: =SUM(Y7)/240 -> 0.040625 | Z8: =SUM(Z7)/240 -> 0.1625
A9: Overhead expenses | B9: 323500 | D9: 50000 | F9: =SUM(B9,D9) -> 373500 | M9: DSE/hd | N9: 1.5 | O9: 1.9 | P9: 1.25 | U9: Cost ($/ha) | V9: =V6/V3 -> 31.41687142 | X9: Fuel | Y9: 1.5 | Z9: 1.5
A10: Profit (EBIT) | B10: =B24*B23 -> 303056.64 | D10: =D7-SUM(D8:D9) -> 75311.328 | F10: =SUM(B10,D10) -> 378367.968 | H10: Rate of capital gain | I10: 0.06 | M10: % yr | N10: 1 | O10: 0.25 | P10: 1 | U10: Kg P/ha | V10: =V7/V3 -> 6.911711712 | X10: Km/L | Y10: 10 | Z10: 10
H11: On costs (stamp dty/legals) | I11: =+(8990+(4.5%*((D20)-300000)))+12000 -> 97490 | M11: Price ($/hd) | N11: 130 | P11: 800 | U11: Kg SSP/ha | V11: =V8/V3 -> 78.54217854 | X11: Fuel cost | Y11: =Y5/Y10*Y9 -> 936 | Z11: =Z5/Z10*Z9 -> 3744
H12: % yr overdraft required | I12: 0.75 | M12: Number head | N12: 3800 | O12: =N12*O13 -> 4180 | P12: =N12*P13 -> 38 | U12: Fertiliser cost ($/t) | V12: 400
A13: Income ($/ha mgd) | B13: =SUM(B14:B16) -> 920.05764 | D13: =D7/$D$3 -> 920.05764 | F13: =F7/$F$5 -> 920.05764 | H13: Additional start up costs | I13: 100000 | M13: Weaning/joining % | O13: 1.1 | P13: 0.01 | U13: Fertiliser rate (kgP/DSE) | V13: 0.8
A14: Enterprise costs ($/ha mgd) | B14: =B8/B3 -> 293.501 | D14: =D8/$D$3 -> 293.501 | F14: =F8/$F$5 -> 293.501 | M14: AA DSE | N14: =N12*N10*N9 -> 5700 | O14: =O12*O10*O9 -> 1985.5 | P14: =P12*P10*P9 -> 47.5 | U14: Cost ($/kg P) | V14: =V12/1000/8.8% -> 4.545454545
A15: Overhead expenses ($/ha mgd) | B15: =B9/B3 -> 323.5 | D15: =D9/D3 -> 250 | F15: =F9/$F$5 -> 311.25 | M15: Total DSE | N15: =SUMPRODUCT(N9:P9,N12:P12,N10:P10) -> 7733 | U15: %P in SSP | V15: 0.088
A16: Profit EBIT($/ha mgd) | B16: =B10/B3 -> 303.05664 | D16: =D13-SUM(D14,D15) -> 376.55664 | F16: =F10/$F$5 -> 315.30664 | M16: Capital cost | N16: =SUMPRODUCT(N12:P12,N11:P11) -> 524400
M17: Capital cost ($/DSE) | N17: =N16/SUM(N14:P14) -> 67.81326781
B18: Existing business | D18: Proposed purchase | F18: Existing plus proposed | M18: Description | O18: Area (ha) | P18: Land class rating | Q18: DSE/ha | R18: Area (% total)
A19: Lease cost ($) | M19: Creek Flats | O19: =SUMIF($P$27:$P$38,$P19,$O$27:$O$38) -> 32.37555645 | P19: 1 | Q19: 15 | R19: =$O19/$O$23 -> 0.03603603604 | U19: Fertiliser | V19: =V6 -> 28225.59876
A20: Land value (owned) | B20: 6340224 | D20: 2000000 | F20: =SUM(B20,D20) -> 8340224 | M20: Undulating Granite | O20: =SUMIF($P$27:$P$38,$P20,$O$27:$O$38) -> 250.9105625 | P20: 2 | Q20: 10 | R20: =$O20/$O$23 -> 0.2792792793 | U20: Depreciation | V20: =V29*12% -> 3600
A21: Land value other | B21: =B20/B3*B4 -> 0 | F21: =SUM(B21,D21) -> 0 | M21: Granite Hills | O21: =SUMIF($P$27:$P$38,$P21,$O$27:$O$38) -> 538.2436261 | P21: 3 | Q21: 8 | R21: 0.5990990991 | U21: Fuel and oil | V21: =SUM(Y11:Z11)*1.1 -> 5148
A22: Non-land asset value | B22: 1236192 | D22: 554400 | F22: =SUM(B22,D22) -> 1790592 | M22: Steep Granite Hills | O22: =SUMIF($P$27:$P$38,$P22,$O$27:$O$38) -> 76.89194658 | P22: 4 | Q22: 6 | R22: 0.08558558559 | U22: Labour unit (incl sup+WC) | V22: =70000*1.21 -> 84700
A23: Total value of assets managed | B23: =SUM(B20:B22) -> 7576416 | D23: =D20+D22 -> 2554400 | F23: =SUM(F20:F22) -> 10130816 | O23: =SUM(O19:O22) -> 898.4216916 | R23: 1 | U23: Rates and rents | V23: 3500
A24: Return on assets managed | B24: 0.04 | D24: =D10/D23 -> 0.02948298152 | F24: =F10/F23 -> 0.0373482223 | U24: Motor vehicle expenses | V24: 2500
U25: Total marginal Overheads | V25: =SUM(V19:V24) -> 127673.5988
B26: Existing business | D26: Proposed expansion | F26: Existing plus proposed | M26: Paddock | N26: Acres | O26: Ha | P26: Rating | Q26: SR DSE/ha | R26: DSE/pdk | S26: SSP rate (kg/ha)
A27: Equity | B27: =(B28-B31)/B28 -> 0.8548126185 | D27: =D28/D23 -> 0.00782962731 | F27: =F28/F23 -> 0.74983259 | M27: Hill | N27: 400 | O27: =N27/2.471 -> 161.8777823 | P27: 3 | Q27: =VLOOKUP(P27,$P$19:$Q$22,2,FALSE) -> 8 | R27: =VLOOKUP(P27,$P$19:$Q$22,2,FALSE)*O27 -> 1295.022258 | S27: =Q27*$V$13/$V$15 -> 72.72727273
A28: Value of owned assets | B28: =B20+B22 -> 7576416 | D28: 20000 | F28: =B28+D28 -> 7596416 | M28: Days Flat | N28: 300 | O28: =N28/2.471 -> 121.4083367 | P28: 2 | Q28: =VLOOKUP(P28,$P$19:$Q$22,2,FALSE) -> 10 | R28: 1214.083367 | S28: 90.90909091
A29: Value of other farming assets | B29: =B21 -> 0 | M29: Dogtrap | N29: 340 | O29: 137.5961149 | P29: 3 | Q29: 8 | R29: 1100.768919 | S29: 72.72727273 | U29: Vehicles | V29: 30000
A30: Operating capital | B30: =SUM(B8:B9) -> 617001 | D30: =SUM(D14,D15)*D3 -> 108700.2 | F30: =B30+D30 -> 725701.2 | M30: Walters | N30: 200 | O30: 80.93889114 | P30: 3 | Q30: 8 | R30: 647.5111291 | S30: 72.72727273
A31: Net liabilities | B31: =1100000 -> 1100000 | D31: =D23-D28+D30+I11+I13 -> 2840590.2 | F31: =SUM(B31:D31) -> 3940590.2 | M31: Pines | N31: 120 | O31: 48.56333468 | P31: 4 | Q31: 6 | R31: 291.3800081 | S31: 54.54545455
A32: Annual interest and lease costs | B32: =(((B30*I12)+(B31-B30))*$B$6)+B19 -> 56744.985 | D32: =(((D30*I12)+(D31-D30))*$D$6)+D19 -> 182871.9848 | F32: =SUM(B32:D32) -> 239616.9697 | M32: Rough | N32: 70 | O32: 28.3286119 | P32: 4 | Q32: 6 | R32: 169.9716714 | S32: 54.54545455
A33: Interest cover | B33: =B10/B32 -> 5.340677066 | D33: =D10/D32 -> 0.4118253985 | F33: =F10/F32 -> 1.579053305 | M33: Dougs | N33: 100 | O33: 40.46944557 | P33: 2 | Q33: 10 | R33: 404.6944557 | S33: 90.90909091
A34: Profit after interest and lease | B34: =B10-B32 -> 246311.655 | D34: =D10-D32 -> -107560.6568 | F34: =F10-F32 -> 138750.9983 | M34: Gibbons | N34: 120 | O34: 48.56333468 | P34: 3 | Q34: 8 | R34: 388.5066775 | S34: 72.72727273
A35: Tax | B35: =((B10*$I$4)-(B32*$I$4)) -> 73893.4965 | D35: =((D10*$I$4)-(D32*$I$4)) -> -32268.19703 | F35: =IF(((F10*$I$4)-(F32*$I$4))<0,0,((F10*$I$4)-(F32*$I$4))) -> 41625.29947 | M35: Willows | N35: 120 | O35: 48.56333468 | P35: 3 | Q35: 8 | R35: 388.5066775 | S35: 72.72727273
A36: Profit after interest and tax | B36: =B34-B35 -> 172418.1585 | D36: =D34-D35 -> -75292.45973 | F36: =F34-F35 -> 97125.69878 | M36: Muddy Springs | N36: 150 | O36: 60.70416835 | P36: 3 | Q36: 8 | R36: 485.6333468 | S36: 72.72727273
A37: Provisioning for capital expenditure | B37: 100000 | D37: 20000 | F37: =SUM(B37,D37) -> 120000 | M37: Bakers | N37: 220 | O37: 89.03278025 | P37: 2 | Q37: 10 | R37: 890.3278025 | S37: 90.90909091
A38: Cash after CAPEX | B38: =B36-B37 -> 72418.1585 | D38: =D36-D37 -> -95292.45973 | F38: -22874.30122 | M38: River | N38: 80 | O38: 32.37555645 | P38: 1 | Q38: 15 | R38: 485.6333468 | S38: 136.3636364
A39: Year 1 value of capital gain | B39: =B20*I10 -> 380413.44 | D39: =D20*I10 -> 120000 | F39: =SUM(B39:D39) -> 500413.44 | N39: =SUM(N27:N38) -> 2220 | O39: =SUM(O27:O38) -> 898.4216916 | R39: =SUM(R27:R38) -> 7762.03966 | S39: =SUMPRODUCT(S27:S38,O27:O38) -> 70563.99691
A40: Total wealth created | B40: =SUM(B36,B39) -> 552831.5985 | D40: =D39+D36 -> 44707.54027 | F40: =F39+F36 -> 597539.1388
A41: Return on equity | B41: =B40/B28 -> 0.07296742926 | F41: =F40/F28 -> 0.07866066561
A43: Will the expansion opportunity: | D43: Year 1 amount:
A44: Reduce equity? | C44: =IF(F27<$B27,"Yes","No") -> Yes | D44: =B27-F27 -> 0.1049800285
A45: Increase debt? | C45: =IF(D31>0,"Yes","No") -> Yes | D45: =D31 -> 2840590.2 | G45: Crop | H45: Wheat | I45: Canola | J45: Barley | K45: Wtd av
A46: Increase annual interest costs? | C46: =IF(D31>0,"Yes","No") -> Yes | D46: =D32 -> 182871.9848 | G46: Area (% total) | H46: 0.33 | I46: 0.33 | J46: 0.33
A47: Increase profit (EBIT)? | C47: =IF(D10>0,"Yes","No") -> Yes | D47: =D10 -> 75311.328 | G47: Area (ha) | H47: =100*H46 -> 33 | I47: =100*I46 -> 33 | J47: 33 | K47: =SUM(H47:J47) -> 99
A48: Increase profit after interest and tax? | C48: =IF(D36>=0,"Yes","No") -> No | D48: =D36 -> -75292.45973 | G48: Yield (t/ha) | H48: 3 | I48: 1.5 | J48: 3.3
A49: Increase wealth? | C49: =IF(D40>=0,"Yes","No") -> Yes | D49: =D40 -> 44707.54027 | G49: Price ($/t) | H49: 260 | I49: 460 | J49: 230 | K49: =SUMPRODUCT(H49:J49,$H$46:$J$46) -> 313.5
A50: Marginal return on equity | D50: =D40/D28 -> 2.235377014 | G50: Income ($/ha) | H50: =H48*H49 -> 780 | I50: =I48*I49 -> 690 | J50: 759 | K50: =SUMPRODUCT(H50:J50,$H$46:$J$46) -> 735.57
G51: Ent exp ($/ha) | H51: 350 | I51: 395 | J51: 335 | K51: =SUMPRODUCT(H51:J51,$H$46:$J$46) -> 356.4
A52: Degree of operating leverage | D52: =((D10+D39)+(D15*D3))/(D10+D39) -> 1.256001536
A53: Degree of financial leverage | D53: =D40/(D40-D32) -> -0.3235820941
A54: Degree of operating leverage | D54: =D52*D53 -> -0.4064196073
A56: Operating leverage | D56: =(D10+D30-(B14*D3))/D10 -> 1.663910747
A58: Total DSE managed | B58: ='[1]Wool Flock'!$G$75+'[1]DP Flock'!$G$77 -> 20076.2771 | D58: =N5 -> 7762.03966
A59: Income ($/DSE) | B59: =B7/B58 -> 45.82810026
A60: Enterprise expenses ($/DSE) | B60: =B8/B58 -> 14.61929413
B62: Year | C62: Equity cashflow | D62: Cumulative equity cashflow | F62: Whole farm cash flow | G62: Cumulative whole farm liabilities | H62: Gross land value | I62: Equity
B63: 0 | C63: =-D28 -> -20000 | D63: =C63 -> -20000 | F63: =-F31 -> -3940590.2 | G63: =IF(F63="","",F63) -> -3940590.2 | H63: =IF(G63="","",F20) -> 8340224 | I63: =(H63+$F$22+G63)/(H63+$F$22) -> 0.6110293386
B64: =IF(B63="","",IF(B63+1<=$I$5,B63+1,"")) -> 1 | C64: =IF($B64="","",$D$38+IF($B64=$I$5,($D$20*(1+$I$10)^$B64)+$D$30+$D$22-($D$23-$D$28),0)) -> -95292.45973 | D64: =IF(B64="","",D63+C64) -> -115292.4597 | F64: =IF($B64="","",$F$38+IF($B64=$I$5,($D$20*(1+$I$10)^$B64)+$D$30+$D$22-($D$23-$D$28),0)) -> -22874.30122 | G64: =IF(F64="","",G63+F64) -> -3963464.501 | H64: =IF(G64="","",$F$20*(1+$I$10)^B64) -> 8840637.44 | I64: =(H64+$F$22+G64)/(H64+$F$22) -> 0.6271866275
B65: =IF(B64="","",IF(B64+1<=$I$5,B64+1,"")) -> 2 | C65: =IF($B65="","",$D$38+IF($B65=$I$5,($D$20*(1+$I$10)^$B65)+$D$30+$D$22-($D$23-$D$28),0)) -> -95292.45973 | D65: =IF(B65="","",D64+C65) -> -210584.9195 | F65: =IF($B65="","",$F$38+IF($B65=$I$5,($D$20*(1+$I$10)^$B65)+$D$30+$D$22-($D$23-$D$28),0)) -> -22874.30122 | G65: =IF(F65="","",G64+F65) -> -3986338.802 | H65: =IF(G65="","",$F$20*(1+$I$10)^B65) -> 9371075.686 | I65: 0.6428545523
B66: 3 | C66: -95292.45973 | D66: -305877.3792 | F66: -22874.30122 | G66: -4009213.104 | H66: 9933340.228 | I66: 0.6580317059
B67: 4 | C67: -95292.45973 | D67: -401169.8389 | F67: -22874.30122 | G67: -4032087.405 | H67: 10529340.64 | I67: 0.6727183888
B68: 5 | C68: -95292.45973 | D68: -496462.2986 | F68: -22874.30122 | G68: -4054961.706 | H68: 11161101.08 | I68: 0.6869164764
B69: 6 | C69: -95292.45973 | D69: -591754.7584 | F69: -22874.30122 | G69: -4077836.007 | H69: 11830767.14 | I69: 0.7006292864
B70: 7 | C70: -95292.45973 | D70: -687047.2181 | F70: -22874.30122 | G70: -4100710.309 | H70: 12540613.17 | I70: 0.7138614472
B71: 8 | C71: -95292.45973 | D71: -782339.6778 | F71: -22874.30122 | G71: -4123584.61 | H71: 13293049.96 | I71: 0.7266187689
B72: 9 | C72: -95292.45973 | D72: -877632.1375 | F72: -22874.30122 | G72: -4146458.911 | H72: 14090632.96 | I72: 0.7389081182
B73: 10 | C73: 1615103.133 | D73: 737470.9958 | F73: 1687521.292 | G73: -2458937.619 | H73: 14936070.94 | I73: 0.8529929354
B74: =IF(B73="","",IF(B73+1<=$I$5,B73+1,"")) ->  | D74: =IF(B74="","",D73+C74) -> 

Sheet Purchase tool Livestock (hidden)
A2: Expansion tool (fixed area) - can I afford to expand? | M2: Asking price ($/ac) | N2: 1000 | Y2: Tom | Z2: LU 1
A3: Area owned (hectares) | B3: 1000 | D3: 200 | F3: =SUM(B3,D3) -> 1200 | M3: Purchase price | N3: =N39*N2 -> 2220000 | U3: Area (ha) | V3: =O39 -> 898.4216916 | X3: Distance (km) | Y3: 30 | Z3: 60
A4: Additional area (mgd or leased) | B4: 0 | F4: 0 | H4: Tax rate | I4: 0.3 | M4: Land price ($/ha) | N4: =N3/O39 -> 2471 | U4: Potential SR DSE | V4: =N5 -> 7762.03966 | X4: Trips/wk | Y4: 2 | Z4: 4
A5: Total area managed | B5: =SUM(B3:B4) -> 1000 | D5: =SUM(D3:D4) -> 200 | F5: =SUM(B5,D5) -> 1200 | H5: Years | I5: 10 | M5: Farm stocking rate ($/ha) | N5: =R39 -> 7762.03966 | U5: Potential SR DSE/ha | V5: =V4/V3 -> 8.63963964 | X5: Distance (km/yr) | Y5: =Y3*2*Y4*52 -> 6240 | Z5: =Z3*2*Z4*52 -> 24960
A6: Bank interest rate | B6: 0.06 | D6: 0.065 | H6: IRR | I6: =IRR(C63:C103) -> 0.1051051601 | M6: Land price ($/DSE) | N6: =N3/N5 -> 286.0072993 | U6: Fertiliser application cost | V6: =V8/1000*V12 -> 28225.59876 | X6: Av speed (km/hr) | Y6: 80 | Z6: 80
A7: Whole farm income | B7: =SUM(B8:B10) -> 723056.64 | D7: =D11*B13 -> 144611.328 | F7: =SUM(B7,D7) -> 867667.968 | H7: NPV | I7: =C63+NPV(10%,C64:C93) -> 15436.56933 | N7: =N5/O23 -> 8.63963964 | U7: Total kg P | V7: =V8*V15 -> 6209.631728 | X7: Days travelling | Y7: =Y5/Y6/8 -> 9.75 | Z7: =Z5/Z6/8 -> 39
A8: Enterprise expenses | B8: =B14*B11 -> 120000 | C8: 0 | D8: =B14*D11*(1+C8) -> 24000 | F8: =SUM(B8,D8) -> 144000 | N8: Ewes | O8: Lambs | P8: Rams | U8: Total kg SSP | V8: =S39 -> 70563.99691 | X8: Percent of FTE travelling | Y8: =SUM(Y7)/240 -> 0.040625 | Z8: =SUM(Z7)/240 -> 0.1625
A9: Overhead expenses | B9: =B15*B11 -> 300000 | D9: 50000 | F9: =SUM(B9,D9) -> 350000 | M9: DSE/hd | N9: 1.5 | O9: 1.9 | P9: 1.25 | U9: Cost ($/ha) | V9: =V6/V3 -> 31.41687142 | X9: Fuel | Y9: 1.5 | Z9: 1.5
A10: Profit (EBIT) | B10: =B24*B23 -> 303056.64 | D10: =D7-SUM(D8:D9) -> 70611.328 | F10: =SUM(B10,D10) -> 373667.968 | H10: Rate of capital gain | I10: 0.06 | M10: % yr | N10: 1 | O10: 0.25 | P10: 1 | U10: Kg P/ha | V10: =V7/V3 -> 6.911711712 | X10: Km/L | Y10: 10 | Z10: 10
A11: Total DSE managed | B11: 15000 | D11: =D12*D3 -> 3000 | H11: On costs (stamp dty/legals) | I11: =+(8990+(4.5%*((D20)-300000)))+12000 -> 97490 | M11: Price ($/hd) | N11: 130 | P11: 800 | U11: Kg SSP/ha | V11: =V8/V3 -> 78.54217854 | X11: Fuel cost | Y11: =Y5/Y10*Y9 -> 936 | Z11: =Z5/Z10*Z9 -> 3744
A12: Stocking rate (DSE/ha) | B12: =B11/B3 -> 15 | C12: 0 | D12: =B12*(1+C12) -> 15 | H12: % yr overdraft required | I12: 0.75 | M12: Number head | N12: 3800 | O12: =N12*O13 -> 4180 | P12: =N12*P13 -> 38 | U12: Fertiliser cost ($/t) | V12: 400
A13: Income ($/DSE mgd) | B13: =SUM(B14:B16) -> 48.203776 | D13: =D7/$D$11 -> 48.203776 | F13: =F7/$F$5 -> 723.05664 | H13: Additional start up costs | I13: 100000 | M13: Weaning/joining % | O13: 1.1 | P13: 0.01 | U13: Fertiliser rate (kgP/DSE) | V13: 0.8
A14: Enterprise costs ($/DSE mgd) | B14: 8 | D14: =D8/$D$11 -> 8 | F14: =F8/$F$5 -> 120 | M14: AA DSE | N14: =N12*N10*N9 -> 5700 | O14: =O12*O10*O9 -> 1985.5 | P14: =P12*P10*P9 -> 47.5 | U14: Cost ($/kg P) | V14: =V12/1000/8.8% -> 4.545454545
A15: Overhead expenses ($/DSE mgd) | B15: 20 | D15: 16.66666667 | F15: =F9/$F$5 -> 291.6666667 | M15: Total DSE | N15: =SUMPRODUCT(N9:P9,N12:P12,N10:P10) -> 7733 | U15: %P in SSP | V15: 0.088
A16: Profit EBIT($/DSE mgd) | B16: =B10/B11 -> 20.203776 | D16: 23.53710933 | F16: =F10/$F$5 -> 311.3899733 | M16: Capital cost | N16: =SUMPRODUCT(N12:P12,N11:P11) -> 524400
M17: Capital cost ($/DSE) | N17: =N16/SUM(N14:P14) -> 67.81326781
B18: Existing business | D18: Proposed purchase | F18: Existing plus proposed | M18: Description | O18: Area (ha) | P18: Land class rating | Q18: DSE/ha | R18: Area (% total)
A19: Lease cost ($) | M19: Creek Flats | O19: =SUMIF($P$27:$P$38,$P19,$O$27:$O$38) -> 32.37555645 | P19: 1 | Q19: 15 | R19: =$O19/$O$23 -> 0.03603603604 | U19: Fertiliser | V19: =V6 -> 28225.59876
A20: Land value (owned) | B20: 6340224 | D20: 2000000 | F20: =SUM(B20,D20) -> 8340224 | M20: Undulating Granite | O20: =SUMIF($P$27:$P$38,$P20,$O$27:$O$38) -> 250.9105625 | P20: 2 | Q20: 10 | R20: =$O20/$O$23 -> 0.2792792793 | U20: Depreciation | V20: =V29*12% -> 3600
A21: Land value other | B21: =B20/B3*B4 -> 0 | F21: =SUM(B21,D21) -> 0 | M21: Granite Hills | O21: =SUMIF($P$27:$P$38,$P21,$O$27:$O$38) -> 538.2436261 | P21: 3 | Q21: 8 | R21: 0.5990990991 | U21: Fuel and oil | V21: =SUM(Y11:Z11)*1.1 -> 5148
A22: Non-land asset value | B22: 1236192 | D22: 554400 | F22: =SUM(B22,D22) -> 1790592 | M22: Steep Granite Hills | O22: =SUMIF($P$27:$P$38,$P22,$O$27:$O$38) -> 76.89194658 | P22: 4 | Q22: 6 | R22: 0.08558558559 | U22: Labour unit (incl sup+WC) | V22: =70000*1.21 -> 84700
A23: Total value of assets managed | B23: =SUM(B20:B22) -> 7576416 | D23: =D20+D22 -> 2554400 | F23: =SUM(F20:F22) -> 10130816 | O23: =SUM(O19:O22) -> 898.4216916 | R23: 1 | U23: Rates and rents | V23: 3500
A24: Return on assets managed | B24: 0.04 | D24: =D10/D23 -> 0.0276430191 | F24: =F10/F23 -> 0.03688429126 | U24: Motor vehicle expenses | V24: 2500
U25: Total marginal Overheads | V25: =SUM(V19:V24) -> 127673.5988
B26: Existing business | D26: Proposed expansion | F26: Existing plus proposed | M26: Paddock | N26: Acres | O26: Ha | P26: Rating | Q26: SR DSE/ha | R26: DSE/pdk | S26: SSP rate (kg/ha)
A27: Equity | B27: =(B28-B31)/B28 -> 0.8548126185 | D27: =D28/D23 -> 0.00782962731 | F27: =F28/F23 -> 0.74983259 | M27: Hill | N27: 400 | O27: =N27/2.471 -> 161.8777823 | P27: 3 | Q27: =VLOOKUP(P27,$P$19:$Q$22,2,FALSE) -> 8 | R27: =VLOOKUP(P27,$P$19:$Q$22,2,FALSE)*O27 -> 1295.022258 | S27: =Q27*$V$13/$V$15 -> 72.72727273
A28: Value of owned assets | B28: =B20+B22 -> 7576416 | D28: 20000 | F28: =B28+D28 -> 7596416 | M28: Days Flat | N28: 300 | O28: =N28/2.471 -> 121.4083367 | P28: 2 | Q28: =VLOOKUP(P28,$P$19:$Q$22,2,FALSE) -> 10 | R28: 1214.083367 | S28: 90.90909091
A29: Value of other farming assets | B29: =B21 -> 0 | M29: Dogtrap | N29: 340 | O29: 137.5961149 | P29: 3 | Q29: 8 | R29: 1100.768919 | S29: 72.72727273 | U29: Vehicles | V29: 30000
A30: Operating capital | B30: =SUM(B8:B9) -> 420000 | D30: =SUM(D14,D15)*D3 -> 4933.333333 | F30: =B30+D30 -> 424933.3333 | M30: Walters | N30: 200 | O30: 80.93889114 | P30: 3 | Q30: 8 | R30: 647.5111291 | S30: 72.72727273
A31: Net liabilities | B31: =1100000 -> 1100000 | D31: =D23-D28+D30+I11+I13 -> 2736823.333 | F31: =SUM(B31:D31) -> 3836823.333 | M31: Pines | N31: 120 | O31: 48.56333468 | P31: 4 | Q31: 6 | R31: 291.3800081 | S31: 54.54545455
A32: Annual interest and lease costs | B32: =(((B30*I12)+(B31-B30))*$B$6)+B19 -> 59700 | D32: =(((D30*I12)+(D31-D30))*$D$6)+D19 -> 177813.35 | F32: =SUM(B32:D32) -> 237513.35 | M32: Rough | N32: 70 | O32: 28.3286119 | P32: 4 | Q32: 6 | R32: 169.9716714 | S32: 54.54545455
A33: Interest cover | B33: =B10/B32 -> 5.076325628 | D33: =D10/D32 -> 0.3971092609 | F33: =F10/F32 -> 1.573250379 | M33: Dougs | N33: 100 | O33: 40.46944557 | P33: 2 | Q33: 10 | R33: 404.6944557 | S33: 90.90909091
A34: Profit after interest and lease | B34: =B10-B32 -> 243356.64 | D34: =D10-D32 -> -107202.022 | F34: =F10-F32 -> 136154.618 | M34: Gibbons | N34: 120 | O34: 48.56333468 | P34: 3 | Q34: 8 | R34: 388.5066775 | S34: 72.72727273
A35: Tax | B35: =((B10*$I$4)-(B32*$I$4)) -> 73006.992 | D35: =((D10*$I$4)-(D32*$I$4)) -> -32160.6066 | F35: =IF(((F10*$I$4)-(F32*$I$4))<0,0,((F10*$I$4)-(F32*$I$4))) -> 40846.3854 | M35: Willows | N35: 120 | O35: 48.56333468 | P35: 3 | Q35: 8 | R35: 388.5066775 | S35: 72.72727273
A36: Profit after interest and tax | B36: =B34-B35 -> 170349.648 | D36: =D34-D35 -> -75041.4154 | F36: =F34-F35 -> 95308.2326 | M36: Muddy Springs | N36: 150 | O36: 60.70416835 | P36: 3 | Q36: 8 | R36: 485.6333468 | S36: 72.72727273
A37: Provisioning for capital expenditure | B37: 100000 | D37: 20000 | F37: =SUM(B37,D37) -> 120000 | M37: Bakers | N37: 220 | O37: 89.03278025 | P37: 2 | Q37: 10 | R37: 890.3278025 | S37: 90.90909091
A38: Cash after CAPEX | B38: =B36-B37 -> 70349.648 | D38: =D36-D37 -> -95041.4154 | F38: -24691.7674 | M38: River | N38: 80 | O38: 32.37555645 | P38: 1 | Q38: 15 | R38: 485.6333468 | S38: 136.3636364
A39: Year 1 value of capital gain | B39: =B20*I10 -> 380413.44 | D39: =D20*I10 -> 120000 | F39: =SUM(B39:D39) -> 500413.44 | N39: =SUM(N27:N38) -> 2220 | O39: =SUM(O27:O38) -> 898.4216916 | R39: =SUM(R27:R38) -> 7762.03966 | S39: =SUMPRODUCT(S27:S38,O27:O38) -> 70563.99691
A40: Total wealth created | B40: =SUM(B36,B39) -> 550763.088 | D40: =D39+D36 -> 44958.5846 | F40: =F39+F36 -> 595721.6726
A41: Return on equity | B41: =B40/B28 -> 0.0726944096 | F41: =F40/F28 -> 0.07842141249
A43: Will the expansion opportunity: | D43: Year 1 amount:
A44: Reduce equity? | C44: =IF(F27<$B27,"Yes","No") -> Yes | D44: =B27-F27 -> 0.1049800285
A45: Increase debt? | C45: =IF(D31>0,"Yes","No") -> Yes | D45: =D31 -> 2736823.333 | G45: Crop | H45: Wheat | I45: Canola | J45: Barley | K45: Wtd av
A46: Increase annual interest costs? | C46: =IF(D31>0,"Yes","No") -> Yes | D46: =D32 -> 177813.35 | G46: Area (% total) | H46: 0.33 | I46: 0.33 | J46: 0.33
A47: Increase profit (EBIT)? | C47: =IF(D10>0,"Yes","No") -> Yes | D47: =D10 -> 70611.328 | G47: Area (ha) | H47: =100*H46 -> 33 | I47: =100*I46 -> 33 | J47: 33 | K47: =SUM(H47:J47) -> 99
A48: Increase profit after interest and tax? | C48: =IF(D36>=0,"Yes","No") -> No | D48: =D36 -> -75041.4154 | G48: Yield (t/ha) | H48: 3 | I48: 1.5 | J48: 3.3
A49: Increase wealth? | C49: =IF(D40>=0,"Yes","No") -> Yes | D49: =D40 -> 44958.5846 | G49: Price ($/t) | H49: 260 | I49: 460 | J49: 230 | K49: =SUMPRODUCT(H49:J49,$H$46:$J$46) -> 313.5
A50: Marginal return on equity | D50: =D40/D28 -> 2.24792923 | G50: Income ($/ha) | H50: =H48*H49 -> 780 | I50: =I48*I49 -> 690 | J50: 759 | K50: =SUMPRODUCT(H50:J50,$H$46:$J$46) -> 735.57
G51: Ent exp ($/ha) | H51: 350 | I51: 395 | J51: 335 | K51: =SUMPRODUCT(H51:J51,$H$46:$J$46) -> 356.4
A52: Degree of operating leverage | D52: =((D10+D39)+(D15*D3))/(D10+D39) -> 1.017487593
A53: Degree of financial leverage | D53: =D40/(D40-D32) -> -0.3384040043
A54: Degree of operating leverage | D54: =D52*D53 -> -0.3443218758
A56: Operating leverage | D56: =(D10+D30-(B14*D3))/D10 -> 1.047206779
A58: Total DSE managed | B58: ='[1]Wool Flock'!$G$75+'[1]DP Flock'!$G$77 -> 20076.2771 | D58: =N5 -> 7762.03966
A59: Income ($/DSE) | B59: =B7/B58 -> 36.01547419
A60: Enterprise expenses ($/DSE) | B60: =B8/B58 -> 5.97720381
B62: Year | C62: Equity cashflow | D62: Cumulative equity cashflow | F62: Whole farm cash flow | G62: Cumulative whole farm liabilities | H62: Gross land value | I62: Equity
B63: 0 | C63: =-D28 -> -20000 | D63: =C63 -> -20000 | F63: =-F31 -> -3836823.333 | G63: =IF(F63="","",F63) -> -3836823.333 | H63: =IF(G63="","",F20) -> 8340224 | I63: =(H63+$F$22+G63)/(H63+$F$22) -> 0.6212720344
B64: =IF(B63="","",IF(B63+1<=$I$5,B63+1,"")) -> 1 | C64: =IF($B64="","",$D$38+IF($B64=$I$5,($D$20*(1+$I$10)^$B64)+$D$30+$D$22-($D$23-$D$28),0)) -> -95041.4154 | D64: =IF(B64="","",D63+C64) -> -115041.4154 | F64: =IF($B64="","",$F$38+IF($B64=$I$5,($D$20*(1+$I$10)^$B64)+$D$30+$D$22-($D$23-$D$28),0)) -> -24691.7674 | G64: =IF(F64="","",G63+F64) -> -3861515.101 | H64: =IF(G64="","",$F$20*(1+$I$10)^B64) -> 8840637.44 | I64: =(H64+$F$22+G64)/(H64+$F$22) -> 0.6367762428
B65: =IF(B64="","",IF(B64+1<=$I$5,B64+1,"")) -> 2 | C65: =IF($B65="","",$D$38+IF($B65=$I$5,($D$20*(1+$I$10)^$B65)+$D$30+$D$22-($D$23-$D$28),0)) -> -95041.4154 | D65: =IF(B65="","",D64+C65) -> -210082.8308 | F65: =IF($B65="","",$F$38+IF($B65=$I$5,($D$20*(1+$I$10)^$B65)+$D$30+$D$22-($D$23-$D$28),0)) -> -24691.7674 | G65: =IF(F65="","",G64+F65) -> -3886206.868 | H65: =IF(G65="","",$F$20*(1+$I$10)^B65) -> 9371075.686 | I65: 0.6518256073
B66: 3 | C66: -95041.4154 | D66: -305124.2462 | F66: -24691.7674 | G66: -3910898.636 | H66: 9933340.228 | I66: 0.6664174989
B67: 4 | C67: -95041.4154 | D67: -400165.6616 | F67: -24691.7674 | G67: -3935590.403 | H67: 10529340.64 | I67: 0.6805509805
B68: 5 | C68: -95041.4154 | D68: -495207.077 | F68: -24691.7674 | G68: -3960282.17 | H68: 11161101.08 | I68: 0.6942266817
B69: 6 | C69: -95041.4154 | D69: -590248.4924 | F69: -24691.7674 | G69: -3984973.938 | H69: 11830767.14 | I69: 0.7074466729
B70: 7 | C70: -95041.4154 | D70: -685289.9078 | F70: -24691.7674 | G70: -4009665.705 | H70: 12540613.17 | I70: 0.7202143395
B71: 8 | C71: -95041.4154 | D71: -780331.3232 | F71: -24691.7674 | G71: -4034357.473 | H71: 13293049.96 | I71: 0.7325342591
B72: 9 | C72: -95041.4154 | D72: -875372.7386 | F72: -24691.7674 | G72: -4059049.24 | H72: 14090632.96 | I72: 0.7444120809
B73: 10 | C73: 1511587.311 | D73: 636214.5724 | F73: 1581936.959 | G73: -2477112.281 | H73: 14936070.94 | I73: 0.8519063671
